[Event "Titled Tuesday Blitz July 4 Early 2023"]
[White "Nakamura, Hikaru"]
[Black "Trifan, Andrei Ioan"]
[WhiteFideId "2016192"]
[BlackFideId "12967068"]
[WhiteElo "3172"]
[BlackElo "2528"]
[Result "1-0"]
[Round "1"]
[TimeControl "180+2"]
[Date "2023.07.04"]
[WhiteClock "0:00:39"]
[BlackClock "0:00:13"]
[Board "1"]

1. Nf3 {[%clk 0:02:58]}  Nf6 {[%clk 0:02:59]} 2. b3 {[%clk 0:02:57]}  b6 {[%clk 0:02:57]} 3. e3 {[%clk 0:02:58]}  Bb7 {[%clk 0:02:57]} 4. Bb2 {[%clk 0:02:58]}  e6 {[%clk 0:02:57]} 5. d4 {[%clk 0:02:56]}  Be7 {[%clk 0:02:56]} 6. Bd3 {[%clk 0:02:50]}  O-O {[%clk 0:02:53]} 7. Nbd2 {[%clk 0:02:49]}  d5 {[%clk 0:02:52]} 8. O-O {[%clk 0:02:49]}  Nbd7 {[%clk 0:02:48]} 9. Ne5 {[%clk 0:02:48]}  c5 {[%clk 0:02:40]} 10. Nxd7 {[%clk 0:02:47]}  Qxd7 {[%clk 0:02:39]} 11. Nf3 {[%clk 0:02:47]}  Rac8 {[%clk 0:02:33]} 12. Ne5 {[%clk 0:02:46]}  Qc7 {[%clk 0:02:33]} 13. dxc5 {[%clk 0:02:44]}  bxc5 {[%clk 0:02:28]} 14. c4 {[%clk 0:02:43]}  Rfd8 {[%clk 0:02:28]} 15. Qc2 {[%clk 0:02:41]}  d4 {[%clk 0:02:21]} 16. exd4 {[%clk 0:02:42]}  cxd4 {[%clk 0:02:21]} 17. Rae1 {[%clk 0:02:39]}  h6 {[%clk 0:02:16]} 18. Qd1 {[%clk 0:02:33]}  Bb4 {[%clk 0:02:11]} 19. Re2 {[%clk 0:02:33]}  Qa5 {[%clk 0:02:05]} 20. Qb1 {[%clk 0:02:08]}  Rc5 {[%clk 0:01:59]} 21. f4 {[%clk 0:02:05]}  Rcc8 {[%clk 0:01:56]} 22. f5 {[%clk 0:01:55]}  Re8 {[%clk 0:01:54]} 23. Qc1 {[%clk 0:01:38]}  Rcd8 {[%clk 0:01:44]} 24. a3 {[%clk 0:01:36]}  Bc3 {[%clk 0:01:38]} 25. b4 {[%clk 0:01:34]}  Bxb2 {[%clk 0:01:38]} 26. Qxb2 {[%clk 0:01:31]}  Qc7 {[%clk 0:01:38]} 27. Qd2 {[%clk 0:01:23]}  Re7 {[%clk 0:01:19]} 28. c5 {[%clk 0:01:12]}  Rde8 {[%clk 0:01:14]} 29. Nc4 {[%clk 0:01:09]}  exf5 {[%clk 0:01:11]} 30. Rxe7 {[%clk 0:01:06]}  Qxe7 {[%clk 0:01:09]} 31. Nd6 {[%clk 0:01:07]}  Qe3+ {[%clk 0:00:55]} 32. Qxe3 {[%clk 0:01:06]}  Rxe3 {[%clk 0:00:56]} 33. Nxb7 {[%clk 0:00:48]}  Rxd3 {[%clk 0:00:56]} 34. c6 {[%clk 0:00:49]}  Rc3 {[%clk 0:00:35]} 35. Nc5 {[%clk 0:00:49]}  Ne8 {[%clk 0:00:25]} 36. Rxf5 {[%clk 0:00:46]}  Rxa3 {[%clk 0:00:20]} 37. Re5 {[%clk 0:00:46]}  Nc7 {[%clk 0:00:18]} 38. Re7 {[%clk 0:00:46]}  Nd5 {[%clk 0:00:19]} 39. Rd7 {[%clk 0:00:45]}  Nb6 {[%clk 0:00:19]} 40. c7 {[%clk 0:00:41]}  a5 {[%clk 0:00:19]} 41. Rd6 {[%clk 0:00:40]}  d3 {[%clk 0:00:15]} 42. Rxb6 {[%clk 0:00:39]}  d2 {[%clk 0:00:15]} 43. c8=Q+ {[%clk 0:00:39]}  Kh7 {[%clk 0:00:13]} 44. Qf5+ {[%clk 0:00:39]} 1-0


[Site "https://www.chess.com"]

[Event "Titled Tuesday Blitz July 4 Early 2023"]
[White "Bluebaum, Matthias"]
[Black "Lana Rodriguez, David"]
[WhiteFideId "24651516"]
[BlackFideId "2270803"]
[WhiteElo "3033"]
[BlackElo "2525"]
[Result "1-0"]
[Round "1"]
[TimeControl "180+2"]
[Date "2023.07.04"]
[WhiteClock "0:00:26"]
[BlackClock "0:00:11"]
[Board "7"]

1. d4 {[%clk 0:03:00]}  Nf6 {[%clk 0:02:58]} 2. c4 {[%clk 0:02:57]}  e6 {[%clk 0:02:58]} 3. Nc3 {[%clk 0:02:57]}  Bb4 {[%clk 0:02:58]} 4. e3 {[%clk 0:02:57]}  d5 {[%clk 0:02:57]} 5. Bd2 {[%clk 0:02:57]}  O-O {[%clk 0:02:57]} 6. Nf3 {[%clk 0:02:58]}  c5 {[%clk 0:02:56]} 7. a3 {[%clk 0:02:58]}  Bxc3 {[%clk 0:02:56]} 8. Bxc3 {[%clk 0:02:59]}  Nc6 {[%clk 0:02:56]} 9. dxc5 {[%clk 0:02:54]}  Ne4 {[%clk 0:02:55]} 10. Rc1 {[%clk 0:02:54]}  Nxc5 {[%clk 0:02:52]} 11. cxd5 {[%clk 0:02:54]}  Qxd5 {[%clk 0:02:41]} 12. Qxd5 {[%clk 0:02:53]}  exd5 {[%clk 0:02:42]} 13. Bxg7 {[%clk 0:02:52]}  Kxg7 {[%clk 0:02:43]} 14. Rxc5 {[%clk 0:02:52]}  Be6 {[%clk 0:02:44]} 15. Bb5 {[%clk 0:02:50]}  Rac8 {[%clk 0:02:43]} 16. Bxc6 {[%clk 0:02:50]}  Rxc6 {[%clk 0:02:44]} 17. Rxc6 {[%clk 0:02:50]}  bxc6 {[%clk 0:02:45]} 18. Kd2 {[%clk 0:02:42]}  c5 {[%clk 0:02:42]} 19. Rc1 {[%clk 0:02:42]}  c4 {[%clk 0:02:40]} 20. Nd4 {[%clk 0:02:42]}  Rb8 {[%clk 0:02:38]} 21. b4 {[%clk 0:02:30]}  cxb3 {[%clk 0:02:37]} 22. Rb1 {[%clk 0:02:30]}  Rb6 {[%clk 0:02:31]} 23. Rxb3 {[%clk 0:02:30]}  Ra6 {[%clk 0:02:32]} 24. Kc3 {[%clk 0:02:26]}  Kf6 {[%clk 0:02:31]} 25. Kb2 {[%clk 0:02:27]}  Ke5 {[%clk 0:02:29]} 26. Rb7 {[%clk 0:02:26]}  Ke4 {[%clk 0:02:26]} 27. Nxe6 {[%clk 0:02:18]}  fxe6 {[%clk 0:02:21]} 28. Rxh7 {[%clk 0:02:19]}  Kd3 {[%clk 0:02:20]} 29. h4 {[%clk 0:02:14]}  Rb6+ {[%clk 0:02:19]} 30. Ka2 {[%clk 0:02:14]}  Rc6 {[%clk 0:02:14]} 31. Rf7 {[%clk 0:02:13]}  a5 {[%clk 0:02:09]} 32. Kb3 {[%clk 0:02:10]}  Rc4 {[%clk 0:02:09]} 33. Ra7 {[%clk 0:01:45]}  Rxh4 {[%clk 0:01:56]} 34. Rxa5 {[%clk 0:01:44]}  Rh2 {[%clk 0:01:56]} 35. Ra4 {[%clk 0:01:40]}  Rxg2 {[%clk 0:01:55]} 36. Ra6 {[%clk 0:01:21]}  Rxf2 {[%clk 0:01:28]} 37. Rxe6 {[%clk 0:01:20]}  Rf3 {[%clk 0:01:29]} 38. a4 {[%clk 0:00:41]}  Rxe3 {[%clk 0:01:23]} 39. Rh6 {[%clk 0:00:42]}  Re8 {[%clk 0:01:00]} 40. Rh3+ {[%clk 0:00:40]}  Kd2 {[%clk 0:00:58]} 41. a5 {[%clk 0:00:27]}  d4 {[%clk 0:00:55]} 42. Kc4 {[%clk 0:00:27]}  Re5 {[%clk 0:00:29]} 43. Ra3 {[%clk 0:00:26]}  Re3 {[%clk 0:00:13]} 44. Ra2+ {[%clk 0:00:26]}  Kc1 {[%clk 0:00:14]} 45. Kxd4 {[%clk 0:00:26]}  Re5 {[%clk 0:00:11]} 46. Kxe5 {[%clk 0:00:26]} 1-0


[Site "https://www.chess.com"]

[Event "Titled Tuesday Blitz July 4 Early 2023"]
[White "Madaminov, Mukhiddin"]
[Black "Yelisieiev, Yevhenii"]
[WhiteFideId "14210703"]
[BlackFideId "14139642"]
[WhiteElo "3030"]
[BlackElo "2523"]
[Result "1-0"]
[Round "1"]
[TimeControl "180+2"]
[Date "2023.07.04"]
[WhiteClock "0:01:07"]
[BlackClock "0:00:04"]
[Board "9"]

1. e4 {[%clk 0:02:58]}  d6 {[%clk 0:02:57]} 2. d4 {[%clk 0:02:58]}  Nf6 {[%clk 0:02:57]} 3. Nc3 {[%clk 0:02:58]}  e5 {[%clk 0:02:57]} 4. Nf3 {[%clk 0:02:54]}  Nbd7 {[%clk 0:02:57]} 5. Rg1 {[%clk 0:02:54]}  g6 {[%clk 0:02:54]} 6. g4 {[%clk 0:02:54]}  Bg7 {[%clk 0:02:54]} 7. g5 {[%clk 0:02:55]}  Nh5 {[%clk 0:02:54]} 8. Be3 {[%clk 0:02:56]}  c6 {[%clk 0:02:53]} 9. Qd2 {[%clk 0:02:53]}  O-O {[%clk 0:02:41]} 10. O-O-O {[%clk 0:02:53]}  Qa5 {[%clk 0:02:27]} 11. Kb1 {[%clk 0:02:45]}  b5 {[%clk 0:02:20]} 12. a3 {[%clk 0:02:44]}  Nb6 {[%clk 0:01:58]} 13. dxe5 {[%clk 0:02:11]}  dxe5 {[%clk 0:01:56]} 14. Bc5 {[%clk 0:02:11]}  Re8 {[%clk 0:01:48]} 15. h4 {[%clk 0:02:01]}  Be6 {[%clk 0:01:40]} 16. Qe3 {[%clk 0:01:35]}  Bc4 {[%clk 0:01:07]} 17. Bh3 {[%clk 0:01:33]}  Nf4 {[%clk 0:01:06]} 18. Bd7 {[%clk 0:01:30]}  Nxd7 {[%clk 0:00:57]} 19. Rxd7 {[%clk 0:01:29]}  Ne6 {[%clk 0:00:43]} 20. Bd6 {[%clk 0:01:20]}  Nd4 {[%clk 0:00:38]} 21. Nxe5 {[%clk 0:01:13]}  Bxe5 {[%clk 0:00:33]} 22. Bxe5 {[%clk 0:01:13]}  Nxc2 {[%clk 0:00:24]} 23. Kxc2 {[%clk 0:01:14]}  Rxe5 {[%clk 0:00:24]} 24. Qd4 {[%clk 0:01:15]}  Rae8 {[%clk 0:00:23]} 25. Rxa7 {[%clk 0:01:15]}  Qd8 {[%clk 0:00:21]} 26. Qxd8 {[%clk 0:01:14]}  Rxd8 {[%clk 0:00:22]} 27. Rd1 {[%clk 0:01:15]}  Rxd1 {[%clk 0:00:19]} 28. Kxd1 {[%clk 0:01:15]}  h6 {[%clk 0:00:15]} 29. f4 {[%clk 0:01:13]}  Re8 {[%clk 0:00:16]} 30. Rd7 {[%clk 0:01:13]}  hxg5 {[%clk 0:00:16]} 31. hxg5 {[%clk 0:01:14]}  Kg7 {[%clk 0:00:12]} 32. Kd2 {[%clk 0:01:13]}  Rh8 {[%clk 0:00:11]} 33. Ke3 {[%clk 0:01:11]}  Rh2 {[%clk 0:00:11]} 34. Rd2 {[%clk 0:01:11]}  Rh3+ {[%clk 0:00:10]} 35. Kd4 {[%clk 0:01:11]}  Rf3 {[%clk 0:00:10]} 36. Ke5 {[%clk 0:01:10]}  Rf1 {[%clk 0:00:10]} 37. Nd1 {[%clk 0:01:07]}  Be6 {[%clk 0:00:09]} 38. Ne3 {[%clk 0:01:07]}  Rf3 {[%clk 0:00:09]} 39. Nc2 {[%clk 0:01:07]}  c5 {[%clk 0:00:06]} 40. b4 {[%clk 0:01:08]}  cxb4 {[%clk 0:00:05]} 41. axb4 {[%clk 0:01:08]}  Rb3 {[%clk 0:00:05]} 42. Nd4 {[%clk 0:01:03]}  Rxb4 {[%clk 0:00:05]} 43. Nxe6+ {[%clk 0:01:04]}  fxe6 {[%clk 0:00:06]} 44. Rd7+ {[%clk 0:01:04]}  Kf8 {[%clk 0:00:06]} 45. Kf6 {[%clk 0:01:05]}  Ke8 {[%clk 0:00:07]} 46. Re7+ {[%clk 0:01:05]}  Kd8 {[%clk 0:00:07]} 47. Rxe6 {[%clk 0:01:06]}  Rc4 {[%clk 0:00:07]} 48. Kxg6 {[%clk 0:01:06]}  Kc7 {[%clk 0:00:07]} 49. f5 {[%clk 0:01:07]}  b4 {[%clk 0:00:07]} 50. f6 {[%clk 0:01:07]}  b3 {[%clk 0:00:08]} 51. f7 {[%clk 0:01:08]}  b2 {[%clk 0:00:08]} 52. f8=Q {[%clk 0:01:08]}  b1=Q {[%clk 0:00:06]} 53. Re7+ {[%clk 0:01:08]}  Kc6 {[%clk 0:00:05]} 54. Qc8+ {[%clk 0:01:08]}  Kd6 {[%clk 0:00:04]} 55. Re6# {[%clk 0:01:07]} 1-0


[Site "https://www.chess.com"]

[Event "Titled Tuesday Blitz July 4 Early 2023"]
[White "Kuzmin, Roman"]
[Black "Martinez Alcantara, Jose Eduardo"]
[WhiteFideId "44134932"]
[BlackFideId "3805662"]
[WhiteElo "2522"]
[BlackElo "3024"]
[Result "0-1"]
[Round "1"]
[TimeControl "180+2"]
[Date "2023.07.04"]
[WhiteClock "0:00:13"]
[BlackClock "0:00:51"]
[Board "10"]

1. e4 {[%clk 0:03:00]}  c5 {[%clk 0:03:00]} 2. Nf3 {[%clk 0:03:00]}  d6 {[%clk 0:03:01]} 3. d4 {[%clk 0:03:01]}  cxd4 {[%clk 0:03:01]} 4. Nxd4 {[%clk 0:03:02]}  a6 {[%clk 0:03:02]} 5. c4 {[%clk 0:03:01]}  e6 {[%clk 0:03:00]} 6. b3 {[%clk 0:02:59]}  Nf6 {[%clk 0:03:00]} 7. Nc3 {[%clk 0:02:59]}  b6 {[%clk 0:03:00]} 8. Bb2 {[%clk 0:02:58]}  Bb7 {[%clk 0:03:01]} 9. Bd3 {[%clk 0:02:59]}  Nbd7 {[%clk 0:03:00]} 10. Qe2 {[%clk 0:02:57]}  Be7 {[%clk 0:02:57]} 11. O-O {[%clk 0:02:57]}  O-O {[%clk 0:02:56]} 12. f4 {[%clk 0:02:58]}  Re8 {[%clk 0:02:32]} 13. Rae1 {[%clk 0:02:52]}  g6 {[%clk 0:02:23]} 14. Kh1 {[%clk 0:02:50]}  Bf8 {[%clk 0:02:21]} 15. Nf3 {[%clk 0:02:48]}  Bg7 {[%clk 0:02:18]} 16. Bb1 {[%clk 0:02:10]}  Nh5 {[%clk 0:02:11]} 17. Qd2 {[%clk 0:01:45]}  Qc7 {[%clk 0:01:51]} 18. f5 {[%clk 0:01:44]}  Rad8 {[%clk 0:01:39]} 19. fxe6 {[%clk 0:01:29]}  fxe6 {[%clk 0:01:39]} 20. Qg5 {[%clk 0:01:28]}  Qc5 {[%clk 0:01:28]} 21. e5 {[%clk 0:01:22]}  Bxf3 {[%clk 0:01:11]} 22. Rxf3 {[%clk 0:01:22]}  Nxe5 {[%clk 0:01:10]} 23. Rfe3 {[%clk 0:01:09]}  Nf6 {[%clk 0:01:03]} 24. Na4 {[%clk 0:00:54]}  Qc7 {[%clk 0:01:01]} 25. Rh3 {[%clk 0:00:55]}  b5 {[%clk 0:00:56]} 26. cxb5 {[%clk 0:00:52]}  axb5 {[%clk 0:00:57]} 27. Nc3 {[%clk 0:00:53]}  b4 {[%clk 0:00:58]} 28. Ne4 {[%clk 0:00:51]}  Nxe4 {[%clk 0:00:58]} 29. Bxe4 {[%clk 0:00:52]}  Qe7 {[%clk 0:00:55]} 30. Qg3 {[%clk 0:00:50]}  Rf8 {[%clk 0:00:55]} 31. Bb1 {[%clk 0:00:27]}  Rc8 {[%clk 0:00:54]} 32. Qe3 {[%clk 0:00:19]}  Ng4 {[%clk 0:00:51]} 33. Qe2 {[%clk 0:00:13]}  Nf2+ {[%clk 0:00:51]} 0-1


[Site "https://www.chess.com"]

[Event "Titled Tuesday Blitz July 4 Early 2023"]
[White "Pranav, V"]
[Black "Kirillov, Dmitry"]
[WhiteFideId "25060783"]
[BlackFideId "34180572"]
[WhiteElo "3002"]
[BlackElo "2519"]
[Result "1-0"]
[Round "1"]
[TimeControl "180+2"]
[Date "2023.07.04"]
[WhiteClock "0:00:10"]
[BlackClock "0:00:02"]
[Board "13"]

1. c4 {[%clk 0:03:00]}  e5 {[%clk 0:02:57]} 2. Nc3 {[%clk 0:02:56]}  Nf6 {[%clk 0:02:58]} 3. g3 {[%clk 0:02:56]}  d5 {[%clk 0:02:55]} 4. cxd5 {[%clk 0:02:57]}  Nxd5 {[%clk 0:02:56]} 5. Bg2 {[%clk 0:02:56]}  Nb6 {[%clk 0:02:57]} 6. Nf3 {[%clk 0:02:51]}  Nc6 {[%clk 0:02:57]} 7. d3 {[%clk 0:02:49]}  Be7 {[%clk 0:02:57]} 8. a3 {[%clk 0:02:46]}  O-O {[%clk 0:02:57]} 9. b4 {[%clk 0:02:46]}  Be6 {[%clk 0:02:57]} 10. O-O {[%clk 0:02:45]}  a5 {[%clk 0:02:57]} 11. b5 {[%clk 0:02:45]}  Nd4 {[%clk 0:02:57]} 12. Nd2 {[%clk 0:02:41]}  Qc8 {[%clk 0:02:57]} 13. Rb1 {[%clk 0:02:33]}  a4 {[%clk 0:02:57]} 14. Bb2 {[%clk 0:02:28]}  Rd8 {[%clk 0:02:57]} 15. Nf3 {[%clk 0:01:57]}  f6 {[%clk 0:02:54]} 16. Nxd4 {[%clk 0:01:54]}  exd4 {[%clk 0:02:54]} 17. Ne4 {[%clk 0:01:54]}  Bb3 {[%clk 0:02:11]} 18. Qc1 {[%clk 0:01:49]}  Qd7 {[%clk 0:01:49]} 19. Nc5 {[%clk 0:01:38]}  Qxb5 {[%clk 0:01:37]} 20. Nxb3 {[%clk 0:01:37]}  axb3 {[%clk 0:01:31]} 21. Bxb7 {[%clk 0:01:36]}  Rab8 {[%clk 0:01:29]} 22. Bc6 {[%clk 0:01:35]}  Qh5 {[%clk 0:01:27]} 23. a4 {[%clk 0:01:32]}  Bb4 {[%clk 0:01:07]} 24. Bf3 {[%clk 0:01:23]}  Qa5 {[%clk 0:01:04]} 25. Qxc7 {[%clk 0:01:19]}  Nxa4 {[%clk 0:01:00]} 26. Qc4+ {[%clk 0:01:06]}  Kh8 {[%clk 0:00:59]} 27. Bxd4 {[%clk 0:01:06]}  Rbc8 {[%clk 0:00:58]} 28. Qe6 {[%clk 0:01:05]}  Bc5 {[%clk 0:00:33]} 29. Bxc5 {[%clk 0:00:49]}  Nxc5 {[%clk 0:00:34]} 30. Qf5 {[%clk 0:00:49]}  Nb7 {[%clk 0:00:23]} 31. Qh3 {[%clk 0:00:19]}  Nc5 {[%clk 0:00:20]} 32. Kg2 {[%clk 0:00:20]}  Rb8 {[%clk 0:00:19]} 33. Qf5 {[%clk 0:00:19]}  Nb7 {[%clk 0:00:18]} 34. Qf4 {[%clk 0:00:19]}  Nc5 {[%clk 0:00:16]} 35. Rfc1 {[%clk 0:00:20]}  Na4 {[%clk 0:00:15]} 36. Rc4 {[%clk 0:00:15]}  Nc3 {[%clk 0:00:14]} 37. Qd2 {[%clk 0:00:15]}  Qa2 {[%clk 0:00:07]} 38. Rb2 {[%clk 0:00:15]}  Nb1 {[%clk 0:00:05]} 39. Qc1 {[%clk 0:00:10]}  Qa4 {[%clk 0:00:02]} 1-0


[Site "https://www.chess.com"]

[Event "Titled Tuesday Blitz July 4 Early 2023"]
[White "Karamsetty, Jeevan"]
[Black "Andreikin, Dmitry"]
[WhiteFideId "2025337"]
[BlackFideId "4158814"]
[WhiteElo "2517"]
[BlackElo "3001"]
[Result "1-0"]
[Round "1"]
[TimeControl "180+2"]
[Date "2023.07.04"]
[WhiteClock "0:00:11"]
[BlackClock "0:00:14"]
[Board "14"]

1. e4 {[%clk 0:03:00]}  c5 {[%clk 0:02:58]} 2. Nc3 {[%clk 0:03:00]}  Nc6 {[%clk 0:02:57]} 3. Bb5 {[%clk 0:03:00]}  Nd4 {[%clk 0:02:55]} 4. Bc4 {[%clk 0:03:01]}  e6 {[%clk 0:02:52]} 5. Nge2 {[%clk 0:03:01]}  Ne7 {[%clk 0:02:44]} 6. Nxd4 {[%clk 0:02:39]}  cxd4 {[%clk 0:02:45]} 7. Ne2 {[%clk 0:02:37]}  Nc6 {[%clk 0:02:41]} 8. O-O {[%clk 0:02:33]}  d5 {[%clk 0:02:33]} 9. exd5 {[%clk 0:02:29]}  exd5 {[%clk 0:02:34]} 10. Bb5 {[%clk 0:02:29]}  Bc5 {[%clk 0:02:31]} 11. c3 {[%clk 0:02:23]}  dxc3 {[%clk 0:02:23]} 12. bxc3 {[%clk 0:02:18]}  O-O {[%clk 0:02:22]} 13. d4 {[%clk 0:02:17]}  Bd6 {[%clk 0:02:22]} 14. Ng3 {[%clk 0:02:16]}  Qh4 {[%clk 0:02:20]} 15. Bd3 {[%clk 0:02:11]}  Ne7 {[%clk 0:02:05]} 16. a4 {[%clk 0:02:06]}  Bg4 {[%clk 0:02:01]} 17. Qc2 {[%clk 0:02:03]}  Rac8 {[%clk 0:01:59]} 18. Ba3 {[%clk 0:01:59]}  Rfd8 {[%clk 0:01:56]} 19. Bxd6 {[%clk 0:01:57]}  Rxd6 {[%clk 0:01:57]} 20. Rfe1 {[%clk 0:01:44]}  Be6 {[%clk 0:01:57]} 21. Qb2 {[%clk 0:01:35]}  Rc7 {[%clk 0:01:53]} 22. Re5 {[%clk 0:01:33]}  g6 {[%clk 0:01:51]} 23. Rae1 {[%clk 0:01:32]}  Rdc6 {[%clk 0:01:49]} 24. Ne2 {[%clk 0:01:26]}  Qf6 {[%clk 0:01:45]} 25. Bb5 {[%clk 0:01:17]}  Rd6 {[%clk 0:01:41]} 26. Qa3 {[%clk 0:01:13]}  Rd8 {[%clk 0:01:40]} 27. Ng3 {[%clk 0:01:10]}  Rdc8 {[%clk 0:01:38]} 28. R5e3 {[%clk 0:01:09]}  h5 {[%clk 0:01:33]} 29. Nf1 {[%clk 0:01:07]}  Nf5 {[%clk 0:01:33]} 30. Rf3 {[%clk 0:01:06]}  Qg5 {[%clk 0:01:33]} 31. Ng3 {[%clk 0:01:05]}  Ng7 {[%clk 0:01:26]} 32. Qb2 {[%clk 0:00:58]}  h4 {[%clk 0:01:25]} 33. Nf1 {[%clk 0:00:59]}  Nf5 {[%clk 0:01:21]} 34. h3 {[%clk 0:00:54]}  Nd6 {[%clk 0:01:21]} 35. Nd2 {[%clk 0:00:49]}  Bf5 {[%clk 0:01:16]} 36. Re5 {[%clk 0:00:47]}  Ne4 {[%clk 0:01:13]} 37. Nxe4 {[%clk 0:00:43]}  dxe4 {[%clk 0:01:13]} 38. Re3 {[%clk 0:00:43]}  Qf4 {[%clk 0:01:14]} 39. Qb4 {[%clk 0:00:29]}  b6 {[%clk 0:01:11]} 40. Re7 {[%clk 0:00:27]}  Kg7 {[%clk 0:01:09]} 41. d5 {[%clk 0:00:24]}  Rxe7 {[%clk 0:00:46]} 42. Qxe7 {[%clk 0:00:23]}  Rc5 {[%clk 0:00:47]} 43. c4 {[%clk 0:00:21]}  a5 {[%clk 0:00:33]} 44. Be8 {[%clk 0:00:12]}  Bc8 {[%clk 0:00:26]} 45. Rxe4 {[%clk 0:00:13]}  Qc1+ {[%clk 0:00:26]} 46. Kh2 {[%clk 0:00:13]}  Bf5 {[%clk 0:00:13]} 47. Qxf7+ {[%clk 0:00:12]}  Kh6 {[%clk 0:00:13]} 48. Rxh4+ {[%clk 0:00:11]}  Kg5 {[%clk 0:00:14]} 49. Qe7# {[%clk 0:00:11]} 1-0


[Site "https://www.chess.com"]

[Event "Titled Tuesday Blitz July 4 Early 2023"]
[White "Kramnik, Vladimir"]
[Black "Di Nicolantonio, Lucas"]
[WhiteFideId "4101588"]
[BlackFideId "680460"]
[WhiteElo "2992"]
[BlackElo "2514"]
[Result "1-0"]
[Round "1"]
[TimeControl "180+2"]
[Date "2023.07.04"]
[WhiteClock "0:00:21"]
[BlackClock "0:00:06"]
[Board "17"]

1. e4 {[%clk 0:02:59]}  c6 {[%clk 0:03:00]} 2. d4 {[%clk 0:02:59]}  d5 {[%clk 0:03:01]} 3. Nd2 {[%clk 0:02:59]}  dxe4 {[%clk 0:03:01]} 4. Nxe4 {[%clk 0:02:59]}  Nf6 {[%clk 0:03:02]} 5. Nxf6+ {[%clk 0:02:58]}  exf6 {[%clk 0:03:03]} 6. c3 {[%clk 0:02:59]}  Bd6 {[%clk 0:03:03]} 7. Bd3 {[%clk 0:02:59]}  O-O {[%clk 0:03:04]} 8. Ne2 {[%clk 0:02:59]}  Re8 {[%clk 0:03:04]} 9. O-O {[%clk 0:02:58]}  Nd7 {[%clk 0:03:04]} 10. Ng3 {[%clk 0:02:58]}  Nf8 {[%clk 0:03:03]} 11. a4 {[%clk 0:02:56]}  a5 {[%clk 0:02:55]} 12. f4 {[%clk 0:02:55]}  Qc7 {[%clk 0:02:30]} 13. Kh1 {[%clk 0:02:51]}  g6 {[%clk 0:02:24]} 14. Ne4 {[%clk 0:02:47]}  Be7 {[%clk 0:02:13]} 15. f5 {[%clk 0:02:44]}  Bxf5 {[%clk 0:02:09]} 16. Rxf5 {[%clk 0:02:44]}  gxf5 {[%clk 0:02:09]} 17. Ng3 {[%clk 0:02:45]}  f4 {[%clk 0:02:01]} 18. Qg4+ {[%clk 0:02:38]}  Ng6 {[%clk 0:02:02]} 19. Nh5 {[%clk 0:02:31]}  Kh8 {[%clk 0:01:37]} 20. Bxf4 {[%clk 0:02:25]}  Bd6 {[%clk 0:01:29]} 21. Bh6 {[%clk 0:02:17]}  Rg8 {[%clk 0:01:22]} 22. Nxf6 {[%clk 0:02:06]}  Nf4 {[%clk 0:01:22]} 23. Qh4 {[%clk 0:01:32]}  Nxd3 {[%clk 0:01:03]} 24. Bf8 {[%clk 0:01:31]}  Rg7 {[%clk 0:00:51]} 25. Bxg7+ {[%clk 0:01:30]}  Kxg7 {[%clk 0:00:51]} 26. Qg5+ {[%clk 0:01:30]}  Kf8 {[%clk 0:00:47]} 27. Nxh7+ {[%clk 0:01:21]}  Ke8 {[%clk 0:00:48]} 28. Qe3+ {[%clk 0:01:13]}  Qe7 {[%clk 0:00:39]} 29. Qxd3 {[%clk 0:01:11]}  Qh4 {[%clk 0:00:39]} 30. g3 {[%clk 0:01:05]}  Bxg3 {[%clk 0:00:20]} 31. Qxg3 {[%clk 0:01:03]}  Qxh7 {[%clk 0:00:19]} 32. Re1+ {[%clk 0:01:03]}  Kd7 {[%clk 0:00:20]} 33. Qg4+ {[%clk 0:00:36]}  f5 {[%clk 0:00:20]} 34. Qf3 {[%clk 0:00:36]}  Re8 {[%clk 0:00:19]} 35. Rf1 {[%clk 0:00:33]}  Rf8 {[%clk 0:00:15]} 36. d5 {[%clk 0:00:33]}  f4 {[%clk 0:00:14]} 37. dxc6+ {[%clk 0:00:32]}  bxc6 {[%clk 0:00:15]} 38. Qg4+ {[%clk 0:00:30]}  Qf5 {[%clk 0:00:15]} 39. Rxf4 {[%clk 0:00:26]}  Qxg4 {[%clk 0:00:12]} 40. Rxg4 {[%clk 0:00:24]}  Rf2 {[%clk 0:00:13]} 41. Rg2 {[%clk 0:00:24]}  Rf1+ {[%clk 0:00:13]} 42. Rg1 {[%clk 0:00:24]}  Rf2 {[%clk 0:00:14]} 43. Rb1 {[%clk 0:00:21]}  c5 {[%clk 0:00:14]} 44. Kg1 {[%clk 0:00:20]}  Rc2 {[%clk 0:00:13]} 45. h4 {[%clk 0:00:20]}  Ke6 {[%clk 0:00:14]} 46. h5 {[%clk 0:00:20]}  Kf7 {[%clk 0:00:14]} 47. Rf1+ {[%clk 0:00:20]}  Kg7 {[%clk 0:00:14]} 48. Rf2 {[%clk 0:00:20]}  Rc1+ {[%clk 0:00:14]} 49. Kg2 {[%clk 0:00:21]}  c4 {[%clk 0:00:14]} 50. Kf3 {[%clk 0:00:21]}  Ra1 {[%clk 0:00:13]} 51. Ke4 {[%clk 0:00:21]}  Rxa4 {[%clk 0:00:13]} 52. Kd4 {[%clk 0:00:21]}  Kh6 {[%clk 0:00:06]} 53. Rh2 {[%clk 0:00:21]} 1-0


[Site "https://www.chess.com"]

[Event "Titled Tuesday Blitz July 4 Early 2023"]
[White "Principe, Alexander"]
[Black "Oparin, Grigoriy"]
[WhiteFideId "3804542"]
[BlackFideId "24125890"]
[WhiteElo "2512"]
[BlackElo "2979"]
[Result "0-1"]
[Round "1"]
[TimeControl "180+2"]
[Date "2023.07.04"]
[WhiteClock "0:00:48"]
[BlackClock "0:01:20"]
[Board "20"]

1. e4 {[%clk 0:02:57]}  c5 {[%clk 0:02:55]} 2. Nf3 {[%clk 0:02:57]}  e6 {[%clk 0:02:56]} 3. d4 {[%clk 0:02:58]}  cxd4 {[%clk 0:02:57]} 4. Nxd4 {[%clk 0:02:58]}  Nf6 {[%clk 0:02:58]} 5. Bd3 {[%clk 0:02:57]}  Nc6 {[%clk 0:02:57]} 6. Nxc6 {[%clk 0:02:56]}  bxc6 {[%clk 0:02:57]} 7. c4 {[%clk 0:02:57]}  e5 {[%clk 0:02:55]} 8. O-O {[%clk 0:02:55]}  Bc5 {[%clk 0:02:52]} 9. Nc3 {[%clk 0:02:55]}  O-O {[%clk 0:02:52]} 10. Qe2 {[%clk 0:02:55]}  d6 {[%clk 0:02:51]} 11. Be3 {[%clk 0:02:56]}  Bd4 {[%clk 0:02:49]} 12. Qd2 {[%clk 0:02:39]}  Ng4 {[%clk 0:02:27]} 13. Bxd4 {[%clk 0:02:36]}  exd4 {[%clk 0:02:27]} 14. Ne2 {[%clk 0:02:36]}  c5 {[%clk 0:02:26]} 15. h3 {[%clk 0:02:35]}  Ne5 {[%clk 0:02:25]} 16. f4 {[%clk 0:02:36]}  Nxd3 {[%clk 0:02:25]} 17. Qxd3 {[%clk 0:02:37]}  Re8 {[%clk 0:02:25]} 18. g4 {[%clk 0:02:33]}  Qh4 {[%clk 0:02:16]} 19. Kg2 {[%clk 0:02:15]}  Bb7 {[%clk 0:02:14]} 20. Ng3 {[%clk 0:02:15]}  Re6 {[%clk 0:02:14]} 21. Rae1 {[%clk 0:02:15]}  Rae8 {[%clk 0:02:14]} 22. Re2 {[%clk 0:02:15]}  g6 {[%clk 0:02:12]} 23. f5 {[%clk 0:02:13]}  Re5 {[%clk 0:02:09]} 24. Kh2 {[%clk 0:02:11]}  Qe7 {[%clk 0:01:56]} 25. Rfe1 {[%clk 0:02:09]}  a5 {[%clk 0:01:53]} 26. b3 {[%clk 0:01:39]}  a4 {[%clk 0:01:53]} 27. bxa4 {[%clk 0:01:38]}  Ba6 {[%clk 0:01:50]} 28. Rb2 {[%clk 0:01:35]}  d5 {[%clk 0:01:49]} 29. Rb6 {[%clk 0:01:19]}  dxc4 {[%clk 0:01:44]} 30. Qf3 {[%clk 0:01:18]}  Qa7 {[%clk 0:01:34]} 31. fxg6 {[%clk 0:01:15]}  hxg6 {[%clk 0:01:35]} 32. Rf1 {[%clk 0:01:09]}  R5e6 {[%clk 0:01:24]} 33. Rxe6 {[%clk 0:01:01]}  Rxe6 {[%clk 0:01:25]} 34. h4 {[%clk 0:00:56]}  c3 {[%clk 0:01:25]} 35. Rc1 {[%clk 0:00:56]}  Qe7 {[%clk 0:01:24]} 36. h5 {[%clk 0:00:55]}  Qg5 {[%clk 0:01:21]} 37. Rb1 {[%clk 0:00:54]}  c2 {[%clk 0:01:20]} 38. Rb8+ {[%clk 0:00:48]}  Kg7 {[%clk 0:01:20]} 0-1


[Site "https://www.chess.com"]